{"text_format":"3","workbook":"xlsx","n_sheets":1,"sheets":["ΛΙΣΤΑ ΑΠΟΘΕΜΑΤΩΝ ΕΞΟΠΛΙΣΜΟΥ"],"not_rendered":{"defined_names":5},"read":"whole","date_system":"1900"}

{"sheet":"ΛΙΣΤΑ ΑΠΟΘΕΜΑΤΩΝ ΕΞΟΠΛΙΣΜΟΥ","index":0,"n_rows":9,"n_cols":19,"rows_kept":9,"merged":[[0,1,0,5],[0,6,0,9],[0,10,0,12],[0,13,0,14],[2,1,2,6],[2,7,2,18]]}
[null,"ΛΙΣΤΑ ΑΠΟΘΕΜΑΤΩΝ ΕΞΟΠΛΙΣΜΟΥ"]
[]
[null,"ΦΥΣΙΚΗ ΚΑΤΑΣΤΑΣΗ",{"$nulls":5},"ΟΙΚΟΝΟΜΙΚΗ ΚΑΤΑΣΤΑΣΗ"]
[null,"Περιουσιακό στοιχείο ή σειριακός αριθμός","Περιγραφή στοιχείου (κατασκευαστής και μοντέλο)","Τοποθεσία","Κατάσταση","Προμηθευτής","Έτη τεχνικής υποστήριξης πουrαπομένουν ","Αρχική τιμή","Προκαταβολή","Ημερομηνία αγοράς ή μίσθωσης","Διάρκεια δανείου σε έτη","Επιτόκιο δανείου","Μηνιαία πληρωμή","Μηνιαίο λειτουργικό κόστος","Συνολικό μηνιαίο κόστος","Αναμενόμενη τιμή κατά τη λήξη της διάρκειας του δανείου","Ετήσια σταθερή απόσβεση","Μηνιαία σταθερή απόσβεση","Τρέχουσα τιμή"]
[null,123,"Κατασκευαστής μοντέλου","Κύριο κατάστημα","Καλή","τοπικός",5,{"v":30000,"d":"30,000.00 €"},{"v":5000,"d":"5,000.00 €"},{"$f":"DATE(YEAR(TODAY())-2, 1,1)","v":"2016-01-01"},4,{"v":0.1,"d":"10.00%"},{"$f":"IFERROR(IF(AND(Δεδομένα[[#This Row],[Αρχική τιμή]]>0,Δεδομένα[[#This Row],[Αρχική τιμή]]<>Δεδομένα[[#This Row],[Προκαταβολή]]),-1*PMT(Δεδομένα[[#This Row],[Επιτόκιο δανείου]]/12,Δεδομένα[[#This Row],[Διάρκεια δανείου σε έτη]]*12,Δεδομένα[[#This Row],[Αρχική τιμή]]-Δεδομένα[[#This Row],[Προκαταβολή]]),0),0)","v":{"v":634.0645858686797,"d":"634.06 €"}},{"v":200,"d":"200.00 €"},{"$f":"IFERROR(Δεδομένα[[#This Row],[Μηνιαίο λειτουργικό κόστος]]+Δεδομένα[[#This Row],[Μηνιαία πληρωμή]],\"\")","v":{"v":834.0645858686797,"d":"834.06 €"}},{"v":20000,"d":"20,000.00 €"},{"$f":"IFERROR(IF(Δεδομένα[[#This Row],[Αρχική τιμή]]>0,SLN(Δεδομένα[[#This Row],[Αρχική τιμή]],Δεδομένα[[#This Row],[Αναμενόμενη τιμή κατά τη λήξη της διάρκειας του δανείου]],Δεδομένα[[#This Row],[Έτη τεχνικής υποστήριξης πουrαπομένουν ]]),0),0)","v":{"v":2000,"d":"2,000.00 €"}},{"$f":"IFERROR(Δεδομένα[[#This Row],[Ετήσια σταθερή απόσβεση]]/12,0)","v":{"v":166.66666666666666,"d":"166.67 €"}},{"$f":"IFERROR(Δεδομένα[[#This Row],[Αρχική τιμή]]-(Δεδομένα[[#This Row],[Ετήσια σταθερή απόσβεση]]*((TODAY()-Δεδομένα[[#This Row],[Ημερομηνία αγοράς ή μίσθωσης]])/365)),0)","v":{"v":25013.698630136987,"d":"25,013.70 €"}}]
[null,456,"Κατασκευαστής μοντέλου","Κύριο κατάστημα","Εξαιρετική","τοπικός",3,{"v":5000,"d":"5,000.00 €"},{"v":5000,"d":"5,000.00 €"},{"$f":"DATE(YEAR(TODAY())-1, 1,1)","v":"2017-01-01"},null,null,{"$f":"IFERROR(IF(AND(Δεδομένα[[#This Row],[Αρχική τιμή]]>0,Δεδομένα[[#This Row],[Αρχική τιμή]]<>Δεδομένα[[#This Row],[Προκαταβολή]]),-1*PMT(Δεδομένα[[#This Row],[Επιτόκιο δανείου]]/12,Δεδομένα[[#This Row],[Διάρκεια δανείου σε έτη]]*12,Δεδομένα[[#This Row],[Αρχική τιμή]]-Δεδομένα[[#This Row],[Προκαταβολή]]),0),0)","v":{"v":0,"d":"0.00 €"}},{"v":20,"d":"20.00 €"},{"$f":"IFERROR(Δεδομένα[[#This Row],[Μηνιαίο λειτουργικό κόστος]]+Δεδομένα[[#This Row],[Μηνιαία πληρωμή]],\"\")","v":{"v":20,"d":"20.00 €"}},null,{"$f":"IFERROR(IF(Δεδομένα[[#This Row],[Αρχική τιμή]]>0,SLN(Δεδομένα[[#This Row],[Αρχική τιμή]],Δεδομένα[[#This Row],[Αναμενόμενη τιμή κατά τη λήξη της διάρκειας του δανείου]],Δεδομένα[[#This Row],[Έτη τεχνικής υποστήριξης πουrαπομένουν ]]),0),0)","v":{"v":1666.6666666666667,"d":"1,666.67 €"}},{"$f":"IFERROR(Δεδομένα[[#This Row],[Ετήσια σταθερή απόσβεση]]/12,0)","v":{"v":138.88888888888889,"d":"138.89 €"}},{"$f":"IFERROR(Δεδομένα[[#This Row],[Αρχική τιμή]]-(Δεδομένα[[#This Row],[Ετήσια σταθερή απόσβεση]]*((TODAY()-Δεδομένα[[#This Row],[Ημερομηνία αγοράς ή μίσθωσης]])/365)),0)","v":{"v":2515.981735159817,"d":"2,515.98 €"}}]
[null,789,"Κατασκευαστής μοντέλου","Ανατολική ακτή","Μέτρια","τοπικός",6,{"v":50000,"d":"50,000.00 €"},{"v":20000,"d":"20,000.00 €"},{"$f":"TODAY()","v":"2018-06-29"},5,{"v":0.05,"d":"5.00%"},{"$f":"IFERROR(IF(AND(Δεδομένα[[#This Row],[Αρχική τιμή]]>0,Δεδομένα[[#This Row],[Αρχική τιμή]]<>Δεδομένα[[#This Row],[Προκαταβολή]]),-1*PMT(Δεδομένα[[#This Row],[Επιτόκιο δανείου]]/12,Δεδομένα[[#This Row],[Διάρκεια δανείου σε έτη]]*12,Δεδομένα[[#This Row],[Αρχική τιμή]]-Δεδομένα[[#This Row],[Προκαταβολή]]),0),0)","v":{"v":566.137009320328,"d":"566.14 €"}},{"v":40,"d":"40.00 €"},{"$f":"IFERROR(Δεδομένα[[#This Row],[Μηνιαίο λειτουργικό κόστος]]+Δεδομένα[[#This Row],[Μηνιαία πληρωμή]],\"\")","v":{"v":606.137009320328,"d":"606.14 €"}},{"v":1500,"d":"1,500.00 €"},{"$f":"IFERROR(IF(Δεδομένα[[#This Row],[Αρχική τιμή]]>0,SLN(Δεδομένα[[#This Row],[Αρχική τιμή]],Δεδομένα[[#This Row],[Αναμενόμενη τιμή κατά τη λήξη της διάρκειας του δανείου]],Δεδομένα[[#This Row],[Έτη τεχνικής υποστήριξης πουrαπομένουν ]]),0),0)","v":{"v":8083.333333333333,"d":"8,083.33 €"}},{"$f":"IFERROR(Δεδομένα[[#This Row],[Ετήσια σταθερή απόσβεση]]/12,0)","v":{"v":673.6111111111111,"d":"673.61 €"}},{"$f":"IFERROR(Δεδομένα[[#This Row],[Αρχική τιμή]]-(Δεδομένα[[#This Row],[Ετήσια σταθερή απόσβεση]]*((TODAY()-Δεδομένα[[#This Row],[Ημερομηνία αγοράς ή μίσθωσης]])/365)),0)","v":{"v":50000,"d":"50,000.00 €"}}]
[{"$nulls":12},{"$f":"IFERROR(IF(AND(Δεδομένα[[#This Row],[Αρχική τιμή]]>0,Δεδομένα[[#This Row],[Αρχική τιμή]]<>Δεδομένα[[#This Row],[Προκαταβολή]]),-1*PMT(Δεδομένα[[#This Row],[Επιτόκιο δανείου]]/12,Δεδομένα[[#This Row],[Διάρκεια δανείου σε έτη]]*12,Δεδομένα[[#This Row],[Αρχική τιμή]]-Δεδομένα[[#This Row],[Προκαταβολή]]),0),0)","v":{"v":0,"d":"0.00 €"}},null,{"$f":"IFERROR(Δεδομένα[[#This Row],[Μηνιαίο λειτουργικό κόστος]]+Δεδομένα[[#This Row],[Μηνιαία πληρωμή]],\"\")","v":{"v":0,"d":"0.00 €"}},null,{"$f":"IFERROR(IF(Δεδομένα[[#This Row],[Αρχική τιμή]]>0,SLN(Δεδομένα[[#This Row],[Αρχική τιμή]],Δεδομένα[[#This Row],[Αναμενόμενη τιμή κατά τη λήξη της διάρκειας του δανείου]],Δεδομένα[[#This Row],[Έτη τεχνικής υποστήριξης πουrαπομένουν ]]),0),0)","v":{"v":0,"d":"0.00 €"}},{"$f":"IFERROR(Δεδομένα[[#This Row],[Ετήσια σταθερή απόσβεση]]/12,0)","v":{"v":0,"d":"0.00 €"}},{"$f":"IFERROR(Δεδομένα[[#This Row],[Αρχική τιμή]]-(Δεδομένα[[#This Row],[Ετήσια σταθερή απόσβεση]]*((TODAY()-Δεδομένα[[#This Row],[Ημερομηνία αγοράς ή μίσθωσης]])/365)),0)","v":{"v":0,"d":"0.00 €"}}]
[{"$nulls":12},{"$f":"IFERROR(IF(AND(Δεδομένα[[#This Row],[Αρχική τιμή]]>0,Δεδομένα[[#This Row],[Αρχική τιμή]]<>Δεδομένα[[#This Row],[Προκαταβολή]]),-1*PMT(Δεδομένα[[#This Row],[Επιτόκιο δανείου]]/12,Δεδομένα[[#This Row],[Διάρκεια δανείου σε έτη]]*12,Δεδομένα[[#This Row],[Αρχική τιμή]]-Δεδομένα[[#This Row],[Προκαταβολή]]),0),0)","v":{"v":0,"d":"0.00 €"}},null,{"$f":"IFERROR(Δεδομένα[[#This Row],[Μηνιαίο λειτουργικό κόστος]]+Δεδομένα[[#This Row],[Μηνιαία πληρωμή]],\"\")","v":{"v":0,"d":"0.00 €"}},null,{"$f":"IFERROR(IF(Δεδομένα[[#This Row],[Αρχική τιμή]]>0,SLN(Δεδομένα[[#This Row],[Αρχική τιμή]],Δεδομένα[[#This Row],[Αναμενόμενη τιμή κατά τη λήξη της διάρκειας του δανείου]],Δεδομένα[[#This Row],[Έτη τεχνικής υποστήριξης πουrαπομένουν ]]),0),0)","v":{"v":0,"d":"0.00 €"}},{"$f":"IFERROR(Δεδομένα[[#This Row],[Ετήσια σταθερή απόσβεση]]/12,0)","v":{"v":0,"d":"0.00 €"}},{"$f":"IFERROR(Δεδομένα[[#This Row],[Αρχική τιμή]]-(Δεδομένα[[#This Row],[Ετήσια σταθερή απόσβεση]]*((TODAY()-Δεδομένα[[#This Row],[Ημερομηνία αγοράς ή μίσθωσης]])/365)),0)","v":{"v":0,"d":"0.00 €"}}]